bitfinex/quotes_ETHUSD_20241019
["timestamp","ask_amount","ask_price","bid_price","bid_amount"]
[1729326838785,1.19001317,2646.2,2645.7,0.7693]
[1729326839297,1.19001317,2646.2,2645.7,4.5489]
[1729326839908,1.19001317,2646.2,2645.8,3.77956]
[1729326840768,4.96909317,2646.2,2645.7,4.54896]
[1729326841679,4.96909317,2646.2,2645.7,5.38183]
[1729326842848,4.96909317,2646.2,2645.7,4.54896]
[1729326843917,4.96909317,2646.2,2645.5,6.77988]
[1729326843918,3.77924,2646.1,2645.5,6.77988]
[1729326844101,3.77924,2646.1,2645.6,4.06143455]
[1729326844310,3.73651499,2646.0,2645.5,3.77999]
[1729326844627,3.73651499,2646.0,2645.6,0.28157995]
[1729326844923,1.19001317,2646.3,2645.8,3.77957]
[1729326845225,1.19001317,2646.3,2645.9,3.77943]
[1729326849823,4.96887317,2646.3,2645.8,7.55914]
[1729326849995,1.19001317,2646.3,2645.8,3.77957]
[1729326850198,1.19001317,2646.3,2645.9,3.77941]
[1729326852406,1.19001317,2646.3,2646.0,3.77925]
[1729326855645,1.19001317,2646.3,2645.8,3.7795]
[1729326855941,1.19001317,2646.3,2645.9,3.77935]
[1729326857960,1.19001317,2646.3,2645.8,4.3228983]
[1729326858122,1.19001317,2646.3,2645.8,8.1023683]
[1729326858742,1.19001317,2646.3,2645.8,4.3228683]
[1729326858947,1.19001317,2646.3,2645.9,3.77942]
[1729326859410,1.19001317,2646.3,2645.8,3.77947]
[1729326859609,1.19001317,2646.3,2645.8,7.55895]
[1729326860454,1.19001317,2646.3,2645.8,3.77947]
[1729326860665,4.96894317,2646.3,2645.8,3.77947]
[1729326860868,3.77923,2646.1,2645.5,3.77999]
[1729326861862,3.77923,2646.1,2645.6,3.77984]
[1729326864348,3.779,2646.2,2645.4,3.78012]
[1729326864550,3.69380436,2646.0,2645.5,3.77997]
[1729326866182,1.19001317,2645.9,2645.5,3.77997]
[1729326869885,4.96952317,2645.9,2645.4,3.78012]
[1729326870338,3.77959,2645.8,2645.4,3.78012]
[1729326871977,4.96960317,2645.8,2645.4,3.78012]
[1729326875610,1.19001317,2645.7,2645.2,3.78035]
[1729326875811,1.19001317,2645.7,2645.3,3.7802]
[1729326876001,1.19001317,2645.7,2645.4,3.78013]
[1729326876916,1.19001317,2645.7,2645.2,3.78031]
[1729326877083,1.19001317,2645.7,2645.3,3.7802]
[1729326879195,4.96960317,2645.8,2645.3,3.7802]
[1729326884788,1.19001317,2645.7,2645.3,3.7802]
[1729326885226,4.96960317,2645.8,2645.3,3.7802]
[1729326889878,1.19001317,2645.7,2645.3,3.7802]
[1729326895559,1.19001317,2645.7,2645.2,4.41742093]
[1729326895560,4.96973317,2645.7,2645.2,4.41742093]
[1729326895769,1.19001317,2645.6,2645.2,4.41742093]
[1729326897212,1.19001317,2645.6,2645.2,8.19777093]
[1729326897493,1.19001317,2645.6,2645.2,4.41742093]
[1729326897894,1.19001317,2645.6,2645.2,8.19777093]
[1729326898494,1.19001317,2645.6,2645.2,4.41742093]
[1729326899797,1.19001317,2645.6,2645.2,8.19778093]
[1729326900811,1.19001317,2645.6,2645.2,4.41742093]
[1729326901461,1.19001317,2645.6,2645.2,8.19777093]
[1729326901900,1.19001317,2645.6,2645.3,3.78028]
[1729326902609,1.19001317,2645.6,2645.2,3.78031]
[1729326903504,2.8e-07,2645.5,2645.2,3.78031]
[1729326904000,5.36576608,2645.7,2645.2,3.78031]
[1729326904210,6.80937283,2645.7,2645.2,3.78031]
[1729326904735,1.58604608,2645.6,2645.2,3.78031]
[1729326905715,1.58604608,2645.6,2645.2,7.56064]
[1729326906429,1.58604608,2645.6,2645.2,3.78031]
[1729326906725,5.76072142,2645.6,2645.1,3.78049]
[1729326908187,5.76072142,2645.6,2645.1,7.56096]
[1729326908188,5.76217252,2645.6,2645.1,7.56096]
[1729326908813,5.76217252,2645.6,2645.1,3.78047]
[1729326909011,5.76217252,2645.6,2645.1,7.56098]
[1729326910448,5.76217252,2645.6,2645.1,3.78047]
[1729326910734,5.76217252,2645.6,2645.1,7.56097]
[1729326910894,5.76217252,2645.6,2645.1,3.78047]
[1729326912124,3.78001,2645.5,2645.0,0.7785]
[1729326912323,3.78001,2645.5,2645.0,4.55914]
[1729326912550,3.2e-07,2645.3,2645.0,4.55914]
[1729326916260,3.2e-07,2645.3,2645.0,4.55911]
[1729326917058,3.2e-07,2645.3,2645.0,8.33975]
[1729326917621,3.2e-07,2645.3,2645.0,4.55911]
[1729326918241,3.2e-07,2645.3,2645.0,0.7785]
[1729326918453,3.2e-07,2645.3,2645.0,4.55919]
[1729326919854,3.2e-07,2645.3,2645.0,0.7785]
[1729326921915,3.2e-07,2645.3,2644.9,3.78078]
[1729326923113,3.2e-07,2645.3,2645.0,3.78067]
[1729326923713,3.2e-07,2645.3,2644.9,3.78078]
[1729326923911,3.2e-07,2645.3,2644.9,4.42073037]
[1729326925522,3.2e-07,2645.3,2644.9,8.20150037]
[1729326928183,3.2e-07,2645.3,2644.9,4.42072037]
[1729326928740,3.2e-07,2645.3,2644.9,3.78077]
[1729326928935,1.98172616,2645.3,2644.6,6.33580483]
[1729326929142,5.36588233,2645.2,2644.7,0.28221047]
[1729326929460,5.36588233,2645.2,2644.6,6.33580483]
[1729326930161,5.36588233,2645.2,2644.7,3.78114]
[1729326931682,1.58544233,2645.2,2644.7,3.78114]
[1729326931845,1.58544233,2645.2,2644.7,8.19853818]
[1729326932156,1.58544233,2645.2,2644.7,8.19847818]
[1729326932365,1.58544233,2645.2,2644.7,4.41739818]
[1729326933066,5.36575233,2645.3,2644.7,4.41739818]
[1729326933275,5.36575233,2645.3,2644.7,8.19841818]
[1729326933600,1.58544233,2645.2,2644.7,4.41733818]
[1729326934387,5.36575233,2645.3,2644.8,0.7526]
[1729326934560,5.36575233,2645.3,2644.8,4.53359]
[1729326934765,1.58544233,2645.3,2644.8,0.7526]
[1729326934968,1.58544233,2645.3,2645.0,0.7526]
[1729326936126,5.36574233,2645.3,2645.0,0.7526]
[1729326936418,1.58544233,2645.2,2644.7,4.53833]
[1729326937986,1.18853068,2645.1,2644.8,3.78097]
[1729326939913,1.18853068,2645.1,2644.7,4.53834]
[1729326940119,1.18853068,2645.1,2644.7,5.55323618]
[1729326943177,1.18853068,2645.1,2644.7,1.77209618]
[1729326943378,1.18853068,2645.1,2644.8,3.78098]
[1729326944418,1.18853068,2645.1,2644.7,5.55323618]
[1729326946206,1.18853068,2645.0,2644.7,4.53834]
[1729326946415,1.18853068,2645.0,2644.7,0.7572]
[1729326948607,3.78073,2645.0,2644.5,4.53862]
[1729326948813,5.36537387,2645.0,2644.5,4.53862]
[1729326949343,1.58464387,2645.0,2644.5,0.7572]
[1729326949566,3.78088,2644.9,2644.5,0.7572]
[1729326950327,3.78072,2645.0,2644.5,4.53861]
[1729326952341,5.36536387,2645.0,2644.5,4.53861]
[1729326952542,3.78072,2645.0,2644.5,4.53861]
[1729326952768,3.78072,2645.0,2644.6,3.78128]
[1729326955748,5.9568253,2645.1,2644.6,3.78128]
[1729326958685,2.1762253,2645.1,2644.7,0.8195]
[1729326958981,0.59158143,2645.1,2644.7,0.8195]
[1729326959579,2.1762253,2645.1,2644.7,0.8195]
[1729326959880,0.59158143,2645.1,2644.7,0.8195]
[1729326960545,1.58464387,2645.1,2644.7,0.8195]
[1729326961067,5.36521387,2645.1,2644.7,0.8195]
[1729326961267,1.58464387,2645.1,2644.7,4.60052]
[1729326961588,1.58464387,2645.2,2644.7,5.54044286]
[1729326961767,1.58464387,2645.2,2644.7,4.60052]
[1729326963488,5.36507387,2645.2,2644.7,4.60052]
[1729326964847,1.58464387,2645.1,2644.7,4.60052]
[1729326970491,5.36528387,2645.1,2644.7,0.8195]
[1729326970682,1.58464387,2645.0,2644.7,0.8195]
[1729326971592,5.36538387,2645.0,2644.7,0.8195]
[1729326972053,10.25900511,2645.0,2644.7,0.8195]
[1729326972257,5.36551387,2644.9,2644.7,0.8195]
[1729326972455,1.58464387,2644.9,2644.5,0.8195]
[1729326972892,3.78108,2644.8,2644.5,0.8195]
[1729326973060,3.2e-07,2644.7,2644.3,0.8195]
[1729326973971,1.03e-06,2644.6,2644.3,0.8195]
[1729326974303,3.78135103,2644.6,2644.3,0.8195]
[1729326974599,4.7359051,2644.6,2644.1,4.60138]
[1729326978560,3.78143,2644.5,2644.1,4.60138]
[1729326980300,1.36810979,2644.4,2644.1,0.8195]
[1729326980505,3.78143,2644.5,2643.9,2.62507276]
[1729326980712,0.53276135,2644.5,2643.9,0.8061]
[1729326980902,3.7818,2644.3,2643.9,0.8061]
[1729326981435,8.4e-07,2644.2,2643.9,0.8061]
[1729326983038,8.4e-07,2644.2,2644.0,3.78214]
[1729326989352,8.4e-07,2644.2,2644.0,4.619178]
[1729326994558,8.4e-07,2644.2,2644.0,8.401248]
[1729326994849,8.4e-07,2644.2,2644.0,4.619108]
[1729326996618,8.4e-07,2644.2,2644.0,8.401168]
[1729326997857,8.4e-07,2644.2,2644.1,3.782]
[1729327024207,1.58482296,2644.2,2644.1,3.782]
[1729327024588,1.58482296,2644.2,2644.0,3.78206]
[1729327025173,1.58482296,2644.2,2644.0,7.56413]
[1729327025788,1.58482296,2644.2,2644.1,3.782]
[1729327027311,1.58482296,2644.2,2644.0,3.78206]
[1729327027611,8.4e-07,2644.2,2644.0,7.56411]
[1729327027786,8.4e-07,2644.2,2644.1,3.782]
[1729327028516,8.4e-07,2644.2,2644.0,3.78205]
[1729327029389,8.4e-07,2644.2,2643.8,3.78234]
[1729327029390,1.98514237,2644.2,2643.8,3.78234]
[1729327029572,1.98514237,2644.2,2643.9,0.28273188]
[1729327029910,1.98514237,2644.2,2643.8,3.78234]
[1729327030110,3.78172,2644.3,2643.8,3.78234]
[1729327030313,3.78189,2644.2,2643.8,3.78234]
[1729327030676,3.78172,2644.3,2643.8,3.78234]
[1729327031078,3.78172,2644.3,2643.9,3.78223]
[1729327031311,0.55,2644.4,2643.9,3.78223]
[1729327031524,4.3316,2644.4,2643.9,3.78223]
[1729327031818,1.03e-06,2644.6,2643.9,3.78223]
[1729327031819,2.38217087,2644.6,2644.1,3.78191]
[1729327031980,2.38217087,2644.6,2644.1,4.59711]
[1729327032179,7.11699561,2644.6,2644.1,4.59711]
[1729327032517,7.11622047,2644.6,2644.1,8.37904]
[1729327032894,7.11622047,2644.6,2644.1,4.59711]
[1729327035415,1.5876047,2644.3,2644.1,4.59711]
[1729327036922,1.5876047,2644.3,2644.1,0.8152]
[1729327037220,1.5876047,2644.2,2644.1,0.8152]
[1729327038698,1.5876047,2644.2,2644.0,3.78214]
[1729327048159,1.5876047,2644.2,2644.0,7.56421]
[1729327048337,1.5876047,2644.2,2644.0,3.78207]
[1729327049409,1.5876047,2644.2,2644.0,7.56413]
[1729327051516,1.5876047,2644.2,2644.0,3.78206]
[1729327053848,1.5876047,2644.1,2643.9,3.78227]
[1729327054764,0.45574968,2644.1,2643.9,3.78227]
[1729327055180,0.45574968,2644.1,2643.9,7.56448]
[1729327055470,1.98440867,2644.3,2643.9,7.56448]
[1729327055672,1.98440867,2644.3,2643.9,3.78221]
[1729327055833,1.98440867,2644.3,2643.9,7.56443]
[1729327056960,1.98440867,2644.3,2643.9,3.78221]
[1729327057125,1.98440867,2644.3,2643.9,7.56443]
[1729327057326,1.98440867,2644.3,2644.1,3.78199]
[1729327057527,3.78130103,2644.6,2644.1,3.78199]
[1729327057528,1.98440867,2644.4,2644.2,4.59846]
[1729327057871,1.98440867,2644.4,2644.2,0.8166]
[1729327061074,1.98429435,2644.4,2644.2,0.8166]
[1729327062841,1.58744006,2644.3,2644.2,0.8166]
[1729327063658,1.58744006,2644.3,2644.2,4.59846]
[1729327064253,1.58744006,2644.3,2644.2,0.8166]
[1729327065946,1.58744006,2644.3,2644.2,4.59846]
[1729327066450,1.58744006,2644.3,2644.2,0.8166]
[1729327066645,1.58744006,2644.3,2644.1,3.78188]
[1729327068862,1.58744006,2644.3,2644.1,7.56378]
[1729327069559,1.58744006,2644.3,2644.1,3.78188]
[1729327073949,1.58744006,2644.3,2644.1,7.56379]
[1729327074290,1.58744006,2644.3,2644.1,3.78188]
[1729327076190,1.58744006,2644.2,2644.1,3.78188]
[1729327077855,1.58744006,2644.3,2644.0,0.8166]
[1729327078094,1.58744006,2644.3,2643.6,1.81092421]
[1729327078095,1.58744006,2644.2,2643.9,3.7822]
[1729327078592,1.58744006,2644.1,2643.9,3.7822]
[1729327079462,1.58744006,2644.1,2643.9,3.78227]
[1729327079799,1.58744006,2644.1,2643.8,4.61483]
[1729327080097,1.58744006,2644.1,2643.8,8.39718]
[1729327080260,1.58744006,2644.1,2643.9,3.78225]
[1729327080786,1.58744006,2644.1,2643.8,8.3971]
[1729327080971,1.58744006,2644.1,2643.8,4.61475]
[1729327081166,1.58744006,2644.1,2643.8,8.39711]
[1729327081386,1.58744006,2644.1,2643.9,3.78226]
[1729327081964,1.58744006,2644.1,2643.8,4.61475]
[1729327082287,1.58744006,2644.3,2644.2,3.78186]
[1729327082487,1.03e-06,2644.6,2644.2,3.78186]
[1729327082488,1.58744006,2644.5,2644.4,0.8324]
[1729327082680,1.58744109,2644.6,2644.5,3.78143]
[1729327083263,1.03e-06,2644.6,2644.5,3.78143]
[1729327086413,1.03e-06,2644.6,2644.5,5.52899758]
[1729327086575,1.03e-06,2644.6,2644.5,5.52898944]
[1729327086982,1.03e-06,2644.6,2644.5,5.45337]
[1729327087174,1.03e-06,2644.6,2644.5,5.73566605]
[1729327087379,1.03e-06,2644.6,2644.5,5.45337]
[1729327090420,1.03e-06,2644.6,2644.5,5.52898147]
[1729327094598,1.03e-06,2644.6,2644.5,5.45337]
[1729327095612,1.03e-06,2644.6,2644.5,5.52898152]
[1729327096136,1.03e-06,2644.6,2644.5,5.52898153]
[1729327096740,1.03e-06,2644.6,2644.5,5.45337]
[1729327097211,1.03e-06,2644.6,2644.5,5.52898155]
[1729327102866,1.03e-06,2644.6,2644.5,5.45337]
[1729327103673,1.03e-06,2644.6,2644.5,5.52897792]
[1729327104195,1.03e-06,2644.6,2644.5,6.00337]
[1729327105186,0.0065634,2645.6,2644.5,6.00337]
[1729327105187,0.0065634,2645.6,2645.5,3.78]
[1729327105413,0.0065634,2645.6,2645.4,3.78013]
[1729327105562,0.0065634,2645.6,2645.5,3.78]
[1729327106356,0.0065634,2645.6,2645.4,3.78013]
[1729327106556,0.0065634,2645.6,2645.5,3.78]
[1729327108598,0.0065634,2645.6,2645.4,3.78006]
[1729327108897,0.0065634,2645.6,2645.5,3.78]
[1729327118840,0.0065634,2645.6,2644.8,6.78099]
[1729327118841,0.0065634,2645.6,2644.9,0.7744]
[1729327118992,3.7864934,2645.6,2644.9,3.78084]
[1729327119314,4.15878934,2645.5,2644.9,3.78084]
[1729327119514,4.15878934,2645.5,2644.9,3.78078]
[1729327119716,3.78015,2645.4,2644.9,3.78078]
[1729327120324,0.37864934,2645.5,2645.0,3.78069]
[1729327120325,4.15864934,2645.5,2645.0,3.78069]
[1729327120928,3.78016,2645.4,2644.9,3.78078]
[1729327121138,0.41588093,2645.3,2644.9,3.78078]
[1729327121331,0.41588093,2645.3,2645.0,3.78069]
[1729327121626,4.15865934,2645.5,2645.0,3.78069]
[1729327122548,3.78016,2645.4,2644.8,3.78086]
[1729327122732,3.78016,2645.4,2644.9,3.78077]
[1729327123253,3.78016,2645.4,2644.8,3.78086]
[1729327123411,3.78016,2645.4,2644.9,3.78085]
[1729327123610,0.41588093,2645.3,2644.9,3.78085]
[1729327127028,4.19620093,2645.3,2644.9,3.78085]
[1729327127828,7.97657093,2645.3,2644.8,3.78099]
[1729327128002,4.19620093,2645.3,2644.8,3.78099]
[1729327132528,3.78051,2645.2,2644.7,3.78113]
[1729327132723,5.94623416,2645.2,2644.7,3.78107]
[1729327133126,4.3587941,2645.2,2644.7,7.56211]
[1729327133348,4.3587941,2645.2,2644.7,3.78104]
[1729327133531,1.01424351,2645.1,2644.7,3.78104]
[1729327137680,3.17434269,2644.9,2644.4,3.7815]
[1729327140335,3.17434269,2644.9,2644.5,3.78141]
[1729327140565,3.17434269,2644.9,2644.3,3.78161]
[1729327140757,4.32791549,2644.9,2644.3,3.78158]
[1729327141148,4.32791549,2644.9,2644.4,3.78149]
[1729327141699,4.32791549,2644.9,2644.5,3.78143]
[1729327145674,3.78101,2644.8,2644.2,0.8034]
[1729327146007,3.78115,2644.7,2644.2,0.8034]
[1729327146373,3.78115,2644.7,2644.2,4.58517]
[1729327146573,0.43279155,2644.8,2644.3,3.7817]
[1729327146800,4.21387155,2644.8,2644.3,3.7817]
[1729327147126,0.73882142,2644.7,2644.3,3.7817]
[1729327147280,4.21387155,2644.8,2644.3,3.7817]
[1729327147776,7.99496155,2644.8,2644.3,3.7817]
[1729327147977,4.21387155,2644.8,2644.3,3.7817]
[1729327150415,4.21387155,2644.8,2644.3,7.56333]
[1729327150617,4.21387155,2644.8,2644.3,3.78163]
[1729327152320,0.42138716,2644.7,2644.3,3.78163]
[1729327152507,4.20252716,2644.7,2644.2,3.78184]
[1729327152698,3.7813,2644.6,2644.1,3.78194]
[1729327152893,3.7813,2644.6,2644.1,3.78191]
[1729327153723,4.20254716,2644.7,2644.1,3.78188]
[1729327154016,4.20160501,2644.7,2644.2,3.78184]
[1729327154519,4.20160501,2644.7,2644.1,7.56378]
[1729327155311,0.42044501,2644.7,2644.1,3.78188]
[1729327155482,3.78129,2644.6,2644.1,3.78188]
[1729327156741,3.78129,2644.6,2644.1,7.56381]
[1729327157059,3.78129,2644.6,2644.2,3.78185]
[1729327157657,3.78129,2644.6,2644.1,3.78188]
[1729327158223,3.78129,2644.6,2644.2,3.78186]
[1729327158663,3.78129,2644.6,2644.1,7.56382]
[1729327160669,0.42044501,2644.7,2644.2,3.78183]
[1729327161146,3.78108,2644.8,2644.0,0.8034]
[1729327161352,9.14903006,2645.0,2644.4,7.56299]
[1729327161552,3.78078,2645.0,2644.5,3.78139]
[1729327161754,1.58744006,2645.1,2644.6,3.78127]
[1729327161960,16.14797006,2645.2,2644.7,3.78105]
[1729327162268,16.14797006,2645.2,2644.6,3.78127]
[1729327162269,3.78059,2645.1,2644.6,4.60348]
[1729327162870,3.78059,2645.1,2644.6,4.6034]
[1729327163034,3.78059,2645.1,2644.6,8.3846]
[1729327163235,16.14788006,2645.2,2644.7,3.78112]
[1729327163469,16.14788006,2645.2,2644.6,4.6034]
[1729327163768,16.14788006,2645.2,2644.6,8.38459]
[1729327163926,8.67788006,2645.2,2644.6,8.38459]
[1729327164129,1.58744006,2645.1,2644.6,8.38459]
[1729327164323,5.36804006,2645.1,2644.6,4.60339]
[1729327165077,5.36804006,2645.1,2644.6,8.38461]
[1729327165581,5.36804006,2645.1,2644.6,4.60339]
[1729327165877,5.36804006,2645.1,2644.6,8.38457]
[1729327166934,1.58744006,2645.1,2644.7,3.78111]
[1729327167470,5.48907482,2645.2,2644.7,3.78111]
[1729327168006,1.58744006,2645.1,2644.7,3.78111]
[1729327172307,5.36805006,2645.1,2644.6,4.60338]
[1729327172670,1.58744006,2645.0,2644.6,4.60338]
[1729327175010,1.58744006,2645.0,2644.6,3.78118]
[1729327176499,1.58744006,2645.0,2644.6,7.56238]
[1729327177203,1.58744006,2645.0,2644.6,3.78118]
[1729327177570,1.58744006,2645.0,2644.6,7.56239]
[1729327178109,1.58744006,2645.0,2644.7,3.78113]
[1729327181682,1.58744006,2645.0,2644.7,4.53973]
[1729327185084,1.58744006,2645.0,2644.7,5.371844]
[1729327185284,1.98177282,2645.1,2644.7,1.590714]
[1729327185285,1.58744006,2645.1,2644.7,1.590714]
[1729327185486,1.58744006,2645.1,2644.4,3.78153]
[1729327185487,1.58744006,2645.1,2644.9,4.53936]
[1729327185670,4.89744006,2645.2,2644.9,4.53936]
[1729327186911,4.89744006,2645.2,2644.9,0.7586]
[1729327186912,1.58744006,2645.1,2644.9,0.7586]
[1729327187071,4.89744006,2645.2,2644.9,0.7586]
[1729327187276,1.58744006,2645.1,2644.9,0.7586]
[1729327188985,1.58744006,2645.1,2644.9,4.53944]
[1729327189176,4.89744006,2645.2,2644.9,4.993384]
[1729327189521,3.31,2645.2,2645.0,3.78061]
[1729327190089,3.31,2645.2,2645.1,3.78057]
[1729327195152,3.31,2645.2,2644.9,4.993384]
[1729327195317,3.31,2645.2,2644.9,1.212544]
[1729327195512,3.31,2645.2,2644.9,4.53938]
[1729327195727,3.31,2645.2,2644.9,3.78078]
[1729327195915,3.31,2645.2,2645.0,3.78071]
[1729327196803,3.31,2645.2,2644.9,3.78084]
[1729327197029,3.31,2645.2,2645.0,3.7807]
[1729327198220,3.31,2645.2,2644.9,3.78079]
[1729327198649,3.31,2645.2,2645.0,3.78067]
[1729327200566,3.31,2645.2,2645.0,3.78063]
[1729327200722,3.31,2645.2,2644.8,3.7809]
[1729327200919,3.31,2645.2,2644.9,3.78085]
[1729327201168,3.31,2645.2,2644.8,7.56182]
[1729327201506,3.31,2645.2,2644.8,3.7809]
[1729327201840,3.31,2645.2,2644.8,7.56182]
[1729327202053,3.31,2645.2,2644.8,3.7809]
[1729327202240,4.89744006,2645.2,2644.8,7.56182]
[1729327202552,4.89744006,2645.2,2644.8,3.7809]
[1729327202553,3.31,2645.2,2644.8,3.7809]
[1729327202753,4.89744006,2645.2,2644.8,3.7809]
[1729327203567,3.31,2645.2,2644.8,3.7809]
[1729327203775,4.89744006,2645.2,2644.8,3.7809]
[1729327204571,8.67790006,2645.2,2644.8,3.7809]
[1729327204728,8.67790006,2645.2,2644.7,0.8259]
[1729327204929,8.67790006,2645.2,2644.7,4.60697]
[1729327205255,1.58744006,2645.1,2644.7,0.8259]
[1729327205605,1.58744006,2645.1,2644.8,3.78099]
[1729327206091,4.89744006,2645.2,2644.8,7.5619]
[1729327206292,1.58744006,2645.1,2644.8,3.7809]
[1729327207101,1.58744006,2645.1,2644.8,7.56183]
[1729327207257,1.58744006,2645.1,2644.8,3.7809]
[1729327207800,1.58744006,2645.1,2644.8,7.56183]
[1729327210271,1.58744006,2645.1,2644.8,3.7809]
[1729327210484,1.58744006,2645.0,2644.8,3.7809]
[1729327210867,1.58744006,2645.1,2644.8,3.7809]
[1729327212191,1.58744006,2645.1,2644.8,7.56179]
[1729327212697,1.58744006,2645.1,2644.8,3.78089]
[1729327212914,1.58744006,2645.1,2644.9,3.78086]
[1729327215176,1.58744006,2645.1,2644.9,3.78085]
[1729327217623,4.89744006,2645.2,2644.9,3.78085]
[1729327224331,4.89744006,2645.2,2644.8,3.781]
[1729327224538,6.02261305,2645.2,2644.9,3.78082]
[1729327225031,1.58744006,2645.1,2644.8,3.781]
[1729327226510,6.02261305,2645.2,2644.8,3.781]
[1729327226696,6.02261305,2645.2,2644.8,7.56192]
[1729327226697,1.58744006,2645.1,2644.8,7.56192]
[1729327227036,0.42429244,2645.1,2644.8,7.56192]
[1729327227223,0.42429244,2645.1,2644.8,3.78092]
[1729327227540,2.0117325,2645.1,2644.8,3.78092]
[1729327229842,2.0117325,2645.1,2644.8,3.78091]
[1729327230049,2.0117325,2645.1,2644.9,3.78085]
[1729327230562,1.58744006,2645.1,2644.9,3.78085]
[1729327236279,5.36808006,2645.1,2644.6,5.58321483]
[1729327236434,5.36808006,2645.1,2644.6,3.78122]
[1729327236435,5.2e-07,2645.0,2644.6,3.78122]
[1729327236632,1.98235813,2645.0,2644.6,3.78122]
[1729327236875,1.98235813,2645.0,2644.6,4.80282332]
[1729327237750,5.76299813,2645.1,2644.6,4.80282332]
[1729327237938,5.76299813,2645.1,2644.6,3.78121]
[1729327240365,5.76299813,2645.1,2644.6,7.56243]
[1729327240674,5.76299813,2645.1,2644.8,4.57662]
[1729327240675,1.98376706,2645.1,2644.8,4.57662]
[1729327240862,5.29376706,2645.2,2644.8,0.7957]
[1729327241066,5.29376706,2645.2,2644.9,3.78085]
[1729327244277,1.58699681,2645.1,2644.9,3.78085]
[1729327244581,5.29376706,2645.2,2644.9,3.78085]
[1729327245306,5.29376706,2645.2,2645.1,0.7957]
[1729327245511,3.31,2645.2,2645.1,0.7957]
[1729327246176,3.31,2645.2,2645.1,4.57627]
[1729327246371,2.17886459,2645.2,2645.1,4.57627]
[1729327247268,0.48222712,2645.2,2645.1,4.57627]
[1729327247491,0.48222712,2645.2,2645.1,5.411961]
[1729327249404,0.46084442,2645.2,2645.1,5.411961]
[1729327251071,2.2e-07,2645.2,2645.1,5.411961]
[1729327256390,1.87922907,2645.6,2645.2,3.78035]
[1729327258616,4.32836823,2645.7,2645.2,3.78035]
[1729327258919,5.37711765,2645.7,2645.2,3.78035]
[1729327261688,1.59739765,2645.7,2645.2,3.78028]
[1729327262540,5.37712765,2645.7,2645.2,3.78028]
[1729327262696,5.37712765,2645.7,2645.2,5.59456765]
[1729327263923,1.59739765,2645.7,2645.2,1.81428765]
[1729327264146,1.59739765,2645.7,2645.3,3.78019]
[1729327264439,3.1e-07,2645.6,2645.3,7.56038]
[1729327264597,3.1e-07,2645.6,2645.3,3.78019]
[1729327264800,0.45171696,2645.7,2645.3,3.78019]
[1729327265142,0.37616563,2645.7,2645.3,3.78019]
[1729327265639,0.66139344,2645.7,2645.0,1.85024884]
[1729327265800,0.40638583,2645.9,2645.5,4.55687]
[1729327265993,0.40638583,2645.9,2645.5,0.777]
[1729327266197,4.18588583,2645.9,2645.3,4.55724]
[1729327266441,3.7796,2645.8,2645.3,8.33746]
[1729327266645,3.7796,2645.8,2645.4,3.78014]
[1729327267303,4.18582583,2645.9,2645.4,3.78014]
[1729327267504,0.79651358,2645.8,2645.4,3.78014]
[1729327269023,4.18582583,2645.9,2645.4,3.78014]
[1729327272617,6.16603514,2645.9,2645.4,3.78014]
[1729327278156,6.16582786,2645.9,2645.4,3.78014]
[1729327280388,4.18582583,2645.9,2645.4,3.78014]
[1729327280691,5.31470867,2645.9,2645.4,3.78014]
[1729327281270,4.18582583,2645.9,2645.4,3.78014]
[1729327282100,6.56057864,2645.9,2645.4,3.78014]
[1729327282268,6.56057864,2645.9,2645.5,0.8108]
[1729327282589,2.78113864,2645.9,2645.5,4.59067]
[1729327284202,2.37475281,2645.9,2645.7,3.77959]
[1729327284405,2.37475281,2645.9,2645.8,4.968329]
[1729327284706,1.98000658,2645.9,2645.8,4.968329]
[1729327288012,0.02267543,2646.2,2645.8,4.968329]
[1729327288317,3.77872,2646.4,2645.9,3.77933]
[1729327288809,3.77872,2646.4,2646.0,3.77926]
[1729327289307,3.77872,2646.4,2645.8,4.968329]
[1729327289506,3.77872,2646.4,2645.9,4.2761629]
[1729327289687,3.77872,2646.4,2645.8,4.59037]
[1729327289886,3.77889,2646.3,2645.8,4.59037]
[1729327292524,3.77889,2646.3,2645.8,8.36987]
[1729327292698,3.77889,2646.3,2645.8,4.5903]
[1729327292899,3.77872,2646.4,2645.8,4.5903]
[1729327293099,3.77906,2646.2,2645.8,0.8108]
[1729327293799,3.77906,2646.2,2645.8,4.59037]
[1729327294217,4.35451519,2646.4,2645.8,8.36986]
[1729327294724,3.77895,2646.3,2645.8,4.59029]
[1729327295332,5.36147419,2646.3,2645.8,8.36977]
[1729327295545,3.77895,2646.3,2645.8,4.59028]
[1729327296021,5.36147419,2646.3,2645.8,8.36975]
[1729327296207,3.77895,2646.3,2645.8,8.36975]
[1729327296403,5.36147419,2646.3,2645.8,8.36975]
[1729327296608,5.36147419,2646.3,2645.8,4.59027]
[1729327296819,5.36147419,2646.3,2645.8,8.36976]
[1729327298214,5.95519213,2646.3,2645.8,8.36976]
[1729327298415,3.77915,2646.1,2645.8,0.8108]
[1729327299681,5.36167419,2646.1,2645.8,0.8108]
[1729327302182,3.77915,2646.1,2645.8,0.8108]
[1729327302367,4.9503946,2646.1,2645.8,0.8108]
[1729327303143,3.30145514,2645.8,2645.6,0.7865]
[1729327303382,5.36203419,2645.9,2645.5,3.77999]
[1729327303543,5.36203419,2645.9,2645.4,3.78006]
[1729327304156,5.36203419,2645.9,2645.5,3.77999]
[1729327304391,6.59113372,2645.9,2645.5,3.77999]
[1729327305985,3.77958,2645.8,2645.3,0.7865]
[1729327306163,5.36195419,2645.9,2645.4,3.78014]
[1729327306692,5.36195419,2645.9,2645.6,3.77985]
[1729327306693,2.17398491,2645.9,2645.6,3.77985]
[1729327306925,0.59146072,2645.9,2645.8,3.77957]
[1729327307099,1.58252419,2646.2,2645.8,4.56607]
[1729327309438,1.58252419,2646.2,2645.8,0.7865]
[1729327310014,5.36152419,2646.2,2645.8,0.7865]
[1729327313238,1.58252419,2646.1,2645.8,0.7865]
[1729327314653,5.36152419,2646.2,2645.8,0.7865]
[1729327315016,1.58252419,2646.1,2645.8,0.7865]
[1729327316253,0.39470146,2646.0,2645.8,0.7865]
[1729327321939,1.58252419,2646.2,2646.0,4.60487]